Cogmind - Beta 17 @@@ ROGUE MODE // 2026.06.25 @ 22:02:31 Player: the Result: Destroyed by MB-LOP(R) with Subdweller Machine Gun Performance ------------- Evolutions (0) 0 Regions Visited (2) 400 Robots Destroyed (36) 180 Value Destroyed (688) 688 Prototype IDs (0) 0 Alien Tech Used (0) 0 Bonus (0) 0 TOTAL SCORE: 1268 Bonus ------- None Cogmind --------- Core Integrity 0/250 Matter 290/300 Energy 254/265 System Corruption 0% Temperature Cool (3) Movement Rolling (95) Ox1 Location -10/Subcaves Parts ------- > --- POWER (1) -------- Improved Ion Engine > --- PROPULSION (2) --- Wheel Wheel > --- UTILITY (2) ------ Subdweller Optics Seismic Detector > --- WEAPON (2) ------- Subdweller Beam Cannon Makeshift Axe > --- INVENTORY (5) ---- Large Storage Unit Scrap Shield Rocket Launcher Peak State ------------ > --- POWER ------------ Improved Ion Engine > --- PROPULSION ------- Wheel Wheel > --- UTILITY ---------- Scrap Shield > --- WEAPON ----------- Subdweller Laser Subdweller Machine Gun > --- INVENTORY -------- Seismic Detector Barrage Gun Barrage Gun Rocket Launcher Mining Laser [Rating: 13] Favorites ----------- Power Improved Ion Engine Engine Improved Ion Engine Propulsion Wheel Treads Light Treads Wheel Wheel Utility Seismic Detector Device Seismic Detector Storage Medium Storage Unit Protection Scrap Shield Weapon Medium Laser Energy Gun Medium Laser Energy Cannon Subdweller Beam Cannon Ballistic Gun Subdweller Machine Gun Launcher Grenade Launcher Special Weapon Mining Laser Slashing Weapon Makeshift Axe Build | -11 -10 -10 ------- Run | Yrd Mat Sub Slots Evolved . | . . . Power . | . . . Propulsion . | . . . Utility . | . . . Weapon . | . . . Parts Attached 28 | 7 9 12 Power 2 | 1 1 . Engine 2 | 1 1 . Core . | . . . Reactor . | . . . Propulsion 8 | 2 3 3 Treads 2 | 2 . . Leg . | . . . Wheel 6 | . 3 3 Hover . | . . . Flight . | . . . Utility 7 | 2 2 3 Device 3 | 1 1 1 Storage 3 | 1 1 1 Processor . | . . . Hackware . | . . . Protection 1 | . . 1 Artifact . | . . . Weapon 11 | 2 3 6 Energy Gun 3 | 1 1 1 Energy Cannon 1 | . . 1 Ballistic Gun 3 | 1 . 2 Ballistic Cannon . | . . . Launcher 1 | . 1 . Special Weapon 2 | . 1 1 Impact Weapon . | . . . Slashing Weapon 1 | . . 1 Piercing Weapon . | . . . Special Melee Weapon . | . . . Unidentified Prototypes . | . . . Parts Lost 8 | . 4 4 Power 1 | . 1 . Propulsion 3 | . 2 1 Utility 2 | . 1 1 Weapon 2 | . . 2 Highest Loss Streak 3 | . 2 3 To Critical Strikes . | . . . Average Backups 6 | 1 8 5 Power 1 | . 2 . Propulsion . | . . . Utility 1 | . 1 1 Weapon 3 | . 4 3 Tool/Special . | . . . Unused Backups 12 | . 1 11 Power 3 | . 1 2 Propulsion . | . . . Utility 3 | . . 3 Weapon 6 | . . 6 Tool/Special . | . . . Average Slot Usage (%) 84 | . 76 88 Engine 9 | . 3 13 Treads 4 | . 13 . Wheel 21 | . 8 27 Device 10 | . 7 12 Storage 6 | . 14 2 Protection 3 | . . 5 Energy Gun 13 | . 17 11 Energy Cannon 1 | . . 2 Ballistic Gun 7 | . 9 7 Special Weapon 3 | . . 4 Peak Build Rating 13 | 7 7 13 Average Rating 8 | 5 6 10 On Entrance 4 | . 7 7 Avg Prop Armor Cover (%) 14 | . 14 . Naked Turns . | . . . Heaviest Build 33 | 13 19 33 Greatest Support 40 | 40 40 20 Greatest Overweight (x) 5 | . 5 1 Average Overweight (x) . | . . . Largest Inventory Capacity 10 | 8 10 10 Average Capacity 7 | 7 9 5 Most Carried 10 | 3 10 10 Average Carried 6 | 1 8 5 Final Capacity 10 | 8 10 5 Final Carried 10 | 3 10 4 Class Distribution -------------------- 58% | Mutant 35% | Scavenger-Mutant 5% | Subdweller-Mutant Dominant Class ---------------- Mutant | -10/Materials Scavenger-Mutant | -10/Subcaves Resources | -11 -10 -10 ----------- Run | Yrd Mat Sub Matter Collected 1122 | 191 618 313 Remotely . | . . . Salvage Created 916 | 135 516 265 Parts 64 | 7 44 13 Haulers Intercepted 1 | . 1 . Recyclers Shooed 1 | . 1 . Parts Field Recycled . | . . . Retrieved Matter . | . . . Parts Self-Destructed 13 | . . 13 Prevented . | . . . Parts Restored . | . . . Kills | -11 -10 -10 ------- Run | Yrd Mat Sub Combat Hostiles Destroyed 19 | . 13 6 Guns 11 | . 5 6 AOE 8 | . 8 . Classes Destroyed 10 | 2 6 2 Worker 3 | . 3 . Builder 2 | . 2 . Tunneler 6 | 3 3 . Hauler 1 | . 1 . Recycler 2 | 1 1 . Watcher 3 | . 3 . Swarmer 6 | . 6 . Grunt 7 | . 7 . Artisan 1 | . . 1 Subdweller 6 | . . 6 Best Kill Streak 6 | 4 6 1 Combat Bots Only 5 | . 5 1 Max Kills in Single Turn 4 | 1 4 1 Gunslinging . | . . . Exploded 2 | . 2 . Melee . | . . . Uniques/NPCs Destroyed . | . . . Combat | -11 -10 -10 -------- Run | Yrd Mat Sub Hostile Shots Fired 99 | . 58 41 Missed 24 | . 14 10 Hits 75 | . 44 31 Projectile 75 | . 44 31 Critical Strikes 2 | . 1 1 Damage Taken 1273 | . 488 785 Core 262 | . 58 204 Absorbed by Shields . | . . . Core Remaining (%) 100 | 100 . . Volleys Fired 175 | 10 58 107 Largest 2 | 2 2 2 Hottest 110 | 70 100 110 Shots Fired 255 | 20 91 144 Gun 178 | 20 81 77 Cannon 10 | . . 10 Launcher 8 | . 8 . Special 59 | . 2 57 Kinetic 52 | 10 22 20 Thermal 195 | 10 61 124 Explosive 8 | . 8 . Electromagnetic . | . . . Robot Hit Streak 25 | 5 9 25 Robot Miss Streak 3 | 2 3 3 Penetration Max . | . . . Secondary Targets 1 | . 1 . Max Gunslinging Chain 1 | . 1 . Shots Hit Robots 111 | 11 47 53 Core Hits 52 | 5 34 13 Critical Kills . | . . . Critical Parts Destroyed . | . . . Critical Strikes 4 | . 2 2 Burn 2 | . 2 . Destroy 2 | . . 2 Melee Attacks 1 | . . 1 Impact . | . . . Slashing 1 | . . 1 Piercing . | . . . Sneak Attacks . | . . . Combat Hostiles . | . . . Follow-up Attacks . | . . . Damage Inflicted 2695 | 139 1683 873 Guns 1606 | 139 594 873 Cannons . | . . . Explosions 1077 | . 1077 . Melee . | . . . Ramming 12 | . 12 . Kinetic 460 | 51 147 262 Thermal 1146 | 88 447 611 Explosive 1077 | . 1077 . Electromagnetic . | . . . Impact . | . . . Slashing . | . . . Piercing . | . . . Highest Corruption . | . . . Average Corruption . | . . . Corruption Purged . | . . . Corruption Blocked . | . . . Overload Shots . | . . . Overflow Damage 66 | . 66 . Projectiles . | . . . Explosions 66 | . 66 . Melee . | . . . Knockbacks . | . . . Impact . | . . . Kinetic . | . . . Secondary . | . . . Self-Inflicted Damage . | . . . Shots . | . . . Rammed 2 | . 2 . Targets Rammed 2 | . 2 . Kicked . | . . . Crushed . | . . . Highest Temperature 120 | 90 120 36 Average Temperature 37 | 46 38 13 Received Heat Transfer 396 | . 216 180 Siege Activations . | . . . Martial Activations . | . . . Shielding Activations . | . . . Robots Disrupted . | . . . Combat Hostiles . | . . . Robots Corrupted . | . . . Combat Hostiles . | . . . Parts Fried . | . . . Impact Corruptions . | . . . Robots Melted . | . . . Combat Hostiles . | . . . Parts Melted 6 | . 4 2 Heat Transferred 2941 | 259 1480 1202 Parts Sabotaged . | . . . Parts Stolen . | . . . Parts Stripped . | . . . Power Chain Reactions . | . . . Alert | -11 -10 -10 ------- Run | Yrd Mat Sub Maximum Alert Level 1 | . 1 . Low Security (%) 96 | 100 96 . Level 1 3 | . 3 . Level 2 . | . . . Level 3 . | . . . Level 4 . | . . . Level 5 . | . . . High Security . | . . . Max Security . | . . . Peak Influence 212 | 10 212 . Initial . | . . . Average 98 | 1 110 . Influence Increases 539 | 20 519 . Destroy 0b10 Robot/C 260 | . 260 . Destroy 0b10 Robot/NC 85 | 20 65 . Destroy Leader 58 | . 58 . Successful Hack 13 | . 13 . Select Force Hacks 30 | . 30 . Disable Machine 30 | . 30 . Destroy Structure 33 | . 33 . Lose Combat Pursuer 30 | . 30 . Influence Decreases 539 | 20 426 93 Entered New Map 45 | . . 45 Time Decay 454 | 20 386 48 Lost Part 40 | . 40 . Squads Dispatched 3 | . 3 . Investigation 3 | . 3 . Extermination . | . . . Reinforcement . | . . . Assault . | . . . Garrison . | . . . Intercept . | . . . Searches Triggered . | . . . Construction Impeded . | . . . Haulers Reinforced . | . . . Active Scanning Responses . | . . . Cargo Convoy Interrupts . | . . . Stealth | -11 -10 -10 --------- Run | Yrd Mat Sub Distress Signals 3 | . 3 . Communications Jammed . | . . . Distress Signals . | . . . Times Spotted 33 | . 18 15 Peak Tracking Total 5 | . 5 3 Tactical Retreats 7 | . 2 5 Traps | -11 -10 -10 ------- Run | Yrd Mat Sub Traps Triggered 7 | . 5 2 Indirectly . | . . . Trap Hack Attempts . | . . . Triggered . | . . . Disarmed . | . . . Reprogrammed . | . . . Reused . | . . . Traps Extracted . | . . . Installed . | . . . Triggered . | . . . Most Traps Carried 1 | . . 1 Machines | -11 -10 -10 ---------- Run | Yrd Mat Sub Machines Disabled 2 | . 2 . Max in Single Turn 1 | . 1 . Machines Repaired . | . . . Machines Dismantled . | . . . Machines Sabotaged . | . . . Overloaded Fab Kills . | . . . Hacking | -11 -10 -10 --------- Run | Yrd Mat Sub Machines Accessed 7 | . 6 1 Terminals 5 | . 5 . Fabricators . | . . . Repair Stations . | . . . Recycling Units 1 | . 1 . Scanalyzers . | . . . Garrison Access . | . . . Total Hacks 19 | . 15 4 Successful 11 | . 7 4 Failed 8 | . 8 . Catastrophic . | . . . Database Lockouts . | . . . Manual 15 | . 15 . Terminals 14 | . 14 . Fabricators . | . . . Repair Stations . | . . . Recycling Units 1 | . 1 . Scanalyzers . | . . . Garrison Access . | . . . Terminal Hacks 4 | . . 4 Record 4 | . . 4 Fabricator Hacks . | . . . Repair Station Hacks . | . . . Recycling Unit Hacks . | . . . Scanalyzer . | . . . Garrison Access Hacks . | . . . Unauthorized Hacks 7 | . 7 . Terminals 6 | . 6 . Botnet 1 | . 1 . Skim 5 | . 5 . Fabricators . | . . . Repair Stations . | . . . Recycling Units 1 | . 1 . Tunnel 1 | . 1 . Scanalyzers . | . . . Garrison Access . | . . . Data Cores Recovered . | . . . Used . | . . . Hacking Detections 5 | . 5 . Full Trace Events . | . . . Feedback Events . | . . . Feedback Blocked . | . . . Robot Schematics Acquired . | . . . Robots Built . | . . . Authchips . | . . . Time . | . . . Total Robot Build Rating . | . . . Part Schematics Acquired . | . . . Parts Built . | . . . Authchips . | . . . Time . | . . . Total Part Build Rating . | . . . Part Studies Acquired . | . . . Parts Repaired . | . . . Time . | . . . Parts Recycled . | . . . Recycled Matter . | . . . Retrieved Matter . | . . . Retrieved Components . | . . . Parts Scanalyzed . | . . . Part Schematics Acquired . | . . . Parts Damaged . | . . . Bothacking | -11 -10 -10 ------------ Run | Yrd Mat Sub Used RIF Installer . | . . . Robots Hacked . | . . . Non-combat . | . . . Combat . | . . . Robot Hacks Applied . | . . . Relay Couplers Released . | . . . Fabnet Peak Effective % . | . . . Robots Rewired . | . . . Allies Hacked . | . . . Hacks Repelled . | . . . Allies | -11 -10 -10 -------- Run | Yrd Mat Sub Total Allies . | . . . Largest Group . | . . . Highest-Rated Group . | . . . Highest-Rated Ally . | . . . Total Orders . | . . . Ally Attacks . | . . . Total Damage . | . . . Kills . | . . . Allies Corrupted . | . . . Allies Melted . | . . . Intel | -11 -10 -10 ------- Run | Yrd Mat Sub Active Infowar (turns) 1755 | 23 553 1179 Optics 619 | . . 619 Seismic 1755 | 23 553 1179 Robot Analysis Total . | . . . Derelict Logs Recovered . | . . . Drone Launches . | . . . Drone Recoveries . | . . . Exploration | -11 -10 -10 ------------- Run | Yrd Mat Sub Turns Passed 3185 | 122 1030 2033 Spaces Moved 2378 | 52 630 1696 Core 5 | 4 1 . Treads 255 | 48 207 . Legs . | . . . Wheels 2118 | . 422 1696 Hover . | . . . Flight . | . . . Fastest Speed 50 | 50 80 80 Average Speed 95 | 151 115 86 Slowest Speed 300 | 160 300 95 Overloaded Moves . | . . . Propulsion Burnouts . | . . . Robots Hopped . | . . . Potential Cave-ins . | . . . Cave-ins Triggered . | . . . Exploration Rate (%) 50 | 3 93 54 Regions Visited 2 Branch Regions 1 Pre-discovered Areas 4 | . 3 1 Known Exits Taken 1 | . 1 . Unknown Exits Taken 1 | 1 . . Scrap Searched 3 | . . 3 Spaces Dug 5 | . 2 3 Terrain Destroyed 42 | . 36 6 Melee 1 | . . 1 Projectile 7 | . 2 5 AOE 34 | . 34 . Terrain Rammed . | . . . Walls Destroyed . | . . . Machines Disabled . | . . . Actions | -11 -10 -10 --------- Run | Yrd Mat Sub Total 2913 | 72 829 2012 Wait 237 | 1 107 129 Move 2376 | 51 629 1696 Hop . | . . . Pick Up 30 | 3 8 19 Fast Attach 22 | 7 10 5 Attach 8 | . . 8 Detach 4 | . 1 3 Swap 21 | . 10 11 Drop 35 | . 4 31 Fire 175 | 10 58 107 Melee 1 | . . 1 Ram . | . . . Kick . | . . . Crush 2 | . 2 . Escape Stasis . | . . . Rewire . | . . . Trap . | . . . Miscellaneous 2 | . . 2 Route ------- -11/Scrapyard -10/Materials (discovered 6 exits: *Mat x3 / [*Min x2] / *Sub) -10/Subcaves History --------- Turn | Location | Event 7 | -11/Scrapyard | Discovered new exit (range 15) 123 | -11/Scrapyard | Entered Materials 317 | -10/Materials | Build established: Mutant 348 | -10/Materials | Discovered new exit (range 12) 546 | -10/Materials | Discovered new exit (range 9) 619 | -10/Materials | Discovered new exit (range 13) 685 | -10/Materials | Discovered new exit (range 10) 859 | -10/Materials | Learned location of 2 exits from Mines 906 | -10/Materials | Learned Storage security intel 931 | -10/Materials | Discovered new exit (range 15) 945 | -10/Materials | Identified exit to Materials 945 | -10/Materials | Identified exit to Subcaves 974 | -10/Materials | Learned Storage trap positions 992 | -10/Materials | Learned location of Storage (-8) 1153 | -10/Materials | Entered Subcaves 1481 | -10/Subcaves | A swath of the cavern ceiling suddenly collapsed 1529 | -10/Subcaves | Shifting Twisted Machinery released Sub. Power Source 1532 | -10/Subcaves | Shifting Twisted Machinery released Flamer 1659 | -10/Subcaves | Visited Clippyterm 1662 | -10/Subcaves | Learned location of Deep Caves (-6) 1778 | -10/Subcaves | Disturbed a concealed Subdweller 2127 | -10/Subcaves | Ambushed by angry Subdweller bent on revenge 2211 | -10/Subcaves | Core integrity fell below 50% 2253 | -10/Subcaves | Lost 3 parts (1n1u1w) 2601 | -10/Subcaves | Build established: Scavenger-Mutant 2933 | -10/Subcaves | Core integrity fell below 20% 3186 | -10/Subcaves | Destroyed by MB-LOP(R) with Subdweller Machine Gun Last Messages --------------- 02582_ Acquired 20 matter. 02697_ Dropped Wheel. 02699_ Acquired Sub. Laser. 02794_ Subatomizers dissect the Wheel. 02825_ RY-5NX(R) suffers critical hit (Destroy). 02828_ RY-5NX(R) destroyed. 02832_ Acquired 4 matter. 02833_ Acquired Sub. Beam Cannon. 02835_ Acquired 10 matter. 02906_ 85-EH8(R) emerges from the Twisted Machinery. 02920_ Dropped Sub. Machine Gun. 03027_ Dropped Disposable Heat Sink. 03029_ Acquired Scrap Shield. 03030_ Acquired 10 matter. 03046_ Dropped Mining Laser. 03046_ Acquired Mak. Axe. 03048_ Dropped Sub. Laser. 03049_ Acquired 10 matter. 03171_ NQ-2FP(u) tweaks Twisted Machinery. Map ----- +----------------------------------------------------+ | ### ## ##?## ### #???? | | #### #####" #### #???# ##????????? | | ##??## #??#" #??# ##???## ##???????? | | ##????# ##??#" #?###?????## #???????? | | #????## #??## ##??????????## ## #??????? | | #????# ###"" "#???????????### ### #????? | | #????# |[%%"""""#????## "## #?# ### #????? | | ?????## #"###"""######""" ### #?# #????? | | ??????#####?###""""##"" ##"# #?# #????? | | ??###?###?????# " """"" ## ### ##??####????? | | ### ### #####?" """"""" ##"##?# ####???????????? | | #""### "" " " ### #??###??????????????? | | [" """ " """ ##??????????????????? | | # # " " "" #??????????????????? | | ####### # # " #### # #??????????????????? | | ??????######### ###??#### #??##" ? ?????????? | | ??????????????## #?????## ##""" ????????? | | ???????????????## ####### """"" ??????? | | ???????????????## # # # """ ??????? | | ???????????????# """ #????????? | | ???????????????## "" ##?###????? | | ????????????????# # # ####" " ####"#????? | | ???????????????# ##### "#???## """ """ #????? | | ???????????????# ##???# u##????##"""""" ##???? | | ???????????????# #????## "#??????"""???# "##??? | | ???????????????# ???##@ ##???????" #??## #??? | | ???????????????# ##???# ""#????????????## #??? | | ???????????????####????# ##???????###??# #??? | | ??????????????????????## #???????## #?## #??? | | ??????????????????????# #??????## #?## #??? | | ??????????????????????## ##??????# #?# #??? | | #####?????????????????## #??????# ### ##??? | | # ##?#??????????????# ##??????# " ##???? | | #^ ### ######??###### R [#?????## #???? | | # #?# #### ## #?????# # #???? | | #??# ## ##????## #####???? | | " #??? ## ##????### #??????? | | " ### ### #??????# #??????? | | # ^ #???# ##### #??????# #??????? | | ## ##??## #???# #??###?# #??????? | | ###??##"# #?## #### ### ##?????? | | #??##"### #?### ## ###???? | | # ##?## ##?#########???## #???? | | ## #?# #??????????##??# #???? | | # #?# ########### #??## ###???? | | # #?## ## #???## ### "#????? | | # ##??## #????####### #????? | | # #??## ## ##?????????# %! #????? | | # #??# ### ##?????????# ##????? | | ## ##?## ## ######????## #?????? | +----------------------------------------------------+ Best States ------------- Heat Dissipation 25 Energy Generation 12 Energy Capacity 265 Matter Stores 350 Matter Capacity 500 Sight Range 21 Terrain Scan Density 10 Armor Coverage 800 Evasion (%) 44 Recoil Reduction 2 Item Schematics ----------------- None Robot Schematics ------------------ None Fabricated ------------ Nothing Repaired ---------- Nothing Studied --------- None Alien Tech Used ----------------- None Achievements -------------- None Challenges ------------ None Game ------ Seed NavigationVampiricCleaver Manual? 0 Play Time 00:32:02 Cumulative 774.6 hours Start 2026.06.25 @ 20:50:49 End 2026.06.25 @ 22:02:31 Sessions 2 Manual Loads 0 Difficulty Rogue Special Mode None Game No. 434 Rogue 434 Adventurer 0 Explorer 0 Win Type - Total 38 Types 18/3/6/2/1/2/2/2/1/1 Lore% 94 Gallery% 89 Achievement% 82 Wizard Run 0 Options --------- Layout 1 ASCII 0 Keyboard 0 Movement Numpad Keybinds 0 Fullscreen 2 Font 24/Smallcaps Map View 50x40 Zoom Use 0% Tactical HUD 1 Map Filters NONE Filters NONE Steam 1 RUN: b07bfce9-a501-41e2-bcb7-4cea66b977db